fUSD/lending_fUSD_20241109
["ID","MTS","AMOUNT","RATE_DAILY","PERIOD"]
[341709094,1731110548267,160.88,0.00015342,2]
[341709097,1731110842114,-450.0,0.00021,2]
[341709098,1731110842136,-663.47,0.00026577,2]
[341709099,1731110842158,-311.48,0.00028183,10]
[341709100,1731110842180,-259.56,0.00028183,10]
[341709101,1731110842201,-1782.6227404,0.00028193,2]
[341709102,1731110842225,-72.26304961,0.00028193,2]
[341709117,1731111032256,-242.47,0.00027789,2]
[341709119,1731111032268,-189.530004,0.00028182,10]
[341709124,1731111032313,-26.769996,0.00028182,10]
[341709125,1731111032322,-180.25,0.00028182,10]
[341709126,1731111032331,-242.47,0.00028235,2]
[341709127,1731111032340,-511.56634452,0.00028361,2]
[341709128,1731111032365,-250.10477548,0.00028361,2]
[341709129,1731111032374,-4026.93106587,0.00028361,2]
[341709130,1731111032420,-1368.17252985,0.00028361,2]
[341709131,1731111032476,-2029.4070907,0.00028361,2]
[341709132,1731111032532,-276.52,0.00028361,2]
[341709139,1731111038373,-275.43867083,0.00028361,2]
[341709140,1731111038385,-780.8,0.00028361,2]
[341709141,1731111038507,-584.94064275,0.00028361,2]
[341709142,1731111038518,-182.72,0.00028562,2]
[341709143,1731111038528,-250.0,0.00028678,2]
[341709144,1731111038538,-242.47,0.00028682,2]
[341709145,1731111038549,-1000.0,0.0002877,2]
[341709146,1731111038558,-250.0,0.00028825,2]
[341709147,1731111038568,-663.47,0.0002884,2]
[341709148,1731111038577,-482.92,0.00028955,120]
[341709149,1731111038586,-221.81,0.00028967,30]
[341709150,1731111038596,-242.47,0.00029128,2]
[341709151,1731111038606,-159.21193295,0.00029255,15]
[341709152,1731111038615,-186.43813818,0.00029255,2]
[341709153,1731111038627,-1680.61684193,0.00029255,2]
[341709154,1731111038639,-2385.17784728,0.00029255,2]
[341709155,1731111038654,-860.95,0.00029255,2]
[341709157,1731111040283,-1811.52111202,0.00029255,2]
[341709158,1731111040358,-1025.15059544,0.00029255,2]
[341709159,1731111040369,-446.134,0.00029255,2]
[341709165,1731111043425,-1357.49999998,0.00029255,2]
[341709166,1731111043479,-234289.8989473,0.00029255,2]
[341709167,1731111043488,-891.3113702,0.00029255,2]
[341709168,1731111043497,-178.6648,0.00029255,2]
[341709169,1731111043506,-2214.7415747,0.00029255,2]
[341709170,1731111043638,-3669.0142253,0.00029255,2]
[341709171,1731111043647,-156.935,0.000293,2]
[341709172,1731111043656,-159.21193288,0.00029353,15]
[341709173,1731111043665,-3416.1438,0.00029356,2]
[341709174,1731111043675,-2059.71288837,0.00029356,2]
[341709182,1731111046686,-382.82556,0.00029356,2]
[341709183,1731111046710,-3000.00068778,0.00029356,2]
[341709184,1731111046768,-548.00316385,0.00029356,2]
[341709185,1731111046781,-822.13515545,0.0002936,2]
[341709186,1731111086380,158.06,0.00016712,2]
[341709187,1731111259706,154.14,0.00015342,2]
[341709215,1731111908056,8343797.86294223,0.00016,2]
[341709216,1731111908096,1183144.34777051,0.00016,2]
[341709217,1731111919579,300.0,9e-05,2]
[341709221,1731112030119,-1230.0,0.000257,2]
[341709222,1731112030144,-679.63,0.00026573,2]
[341709223,1731112030167,-1071.81,0.000272,2]
[341709224,1731112030192,-1071.81,0.00027637,2]
[341709225,1731112030219,-1423.822579,0.00027908,2]
[341709226,1731112032247,-307.79601245,0.00027908,2]
[341709228,1731112072692,152.79,0.00015342,2]
[341709229,1731112084827,816252.86222949,0.00015,2]
[341709230,1731112084854,2000000.0,0.00015,2]
[341709231,1731112084880,500000.0,0.00015,2]
[341709232,1731112084907,1965942.3298187,0.00015,2]
[341709233,1731112084931,1121468.81436243,0.00015,2]
[341709234,1731112093336,201.70886778,0.00015,2]
[341709235,1731112102741,400.0,0.000135,2]
[341709236,1731112102855,292.36583416,0.000125,2]
[341709237,1731112112299,552.40607393,0.00015235,2]
[341709238,1731112114556,14924.04948352,0.000129,2]
[341709239,1731112120178,212.75473384,0.0001,2]
[341709241,1731112124222,5089.0,0.00015,2]
[341709243,1731112125159,495.72722737,0.00015,2]
[341709244,1731112126237,212.2871037,0.00013,2]
[341709247,1731112126808,295.45512036,0.000151,2]
[341709248,1731112146098,-912.53532307,0.00022,2]
[341709249,1731112146119,-1243.0,0.00022,2]
[341709250,1731112146139,-163.9,0.00026449,2]
[341709255,1731112231560,-1000.0,0.00027685,2]
[341709256,1731112231571,-200.0,0.00027713,2]
[341709257,1731112231580,-188.0,0.00027734,2]
[341709258,1731112231589,-386.34,0.00027786,120]
[341709259,1731112231599,-2619.7195302,0.00027908,2]
[341709260,1731112231619,-167.69887835,0.00027908,2]
[341709261,1731112231628,-142.14893843,0.00028027,2]
[341709262,1731112231647,-26.45031157,0.00028027,2]
[341709263,1731112231657,-210.71,0.00028034,30]
[341709264,1731112231667,-1071.81,0.00028074,2]
[341709265,1731112231676,-1188.53339005,0.00028078,2]
[341709266,1731112231748,-1577.43008158,0.00028078,2]
[341709267,1731112231809,-2292.1489964,0.00028078,2]
[341709330,1731112237613,-835.93881565,0.00028078,2]
[341709331,1731112237625,-3774.17959658,0.00028078,2]
[341709332,1731112237637,-400.13177171,0.00028078,2]
[341709333,1731112237667,-5902.16734803,0.00028078,2]
[341709334,1731112237677,-38.17450855,0.00028295,2]
[341709335,1731112237727,-1865.82549145,0.00028295,2]
[341709336,1731112237737,-620.14,0.00028377,2]
[341709337,1731112237746,-250.0,0.00028406,2]
[341709338,1731112237756,-153.51349959,0.00028408,2]
[341709514,1731112239555,-330.342,0.00028408,2]
[341709534,1731112239725,-994.11484087,0.00028408,2]
[341709536,1731112239736,-73.62965668,0.00028408,2]
[341709538,1731112239746,-2790.66,0.00028408,2]
[341709540,1731112239755,-2790.66,0.00028423,2]
[341709542,1731112239764,-2790.66,0.00028438,2]
[341709544,1731112239773,-2790.66,0.00028453,2]
[341709546,1731112239782,-904.43249845,0.00028467,2]
[341709548,1731112239793,-2790.66,0.00028468,2]
[341709549,1731112239802,-2790.66,0.00028483,2]
[341709551,1731112239811,-2790.66,0.00028498,2]
[341709553,1731112239820,-1071.81,0.00028511,2]
[341709555,1731112239829,-2790.66,0.00028513,2]
[341709557,1731112239838,-2790.66,0.00028528,2]
[341709559,1731112239847,-2790.66,0.00028543,2]
[341709561,1731112239857,-2790.66,0.00028558,2]
[341709563,1731112239866,-2790.66,0.00028573,2]
[341709565,1731112239876,-2790.66,0.00028588,2]
[341709567,1731112239885,-2790.66,0.00028603,2]
[341709569,1731112239894,-2790.66,0.00028617,2]
[341709571,1731112239903,-2790.66,0.00028632,2]
[341709573,1731112239913,-2790.66,0.00028647,2]
[341709575,1731112239923,-2790.66,0.00028662,2]
[341709577,1731112239932,-2790.66,0.00028677,2]
[341709579,1731112239941,-2790.66,0.00028692,2]
[341709581,1731112239950,-413.66,0.00028724,120]
[341709583,1731112239960,-162.45,0.00028724,2]
[341709585,1731112239969,-625.64554776,0.00028774,2]
[341709587,1731112239978,-679.63,0.00028836,2]
[341709589,1731112239987,-154.14,0.00028858,2]
[341709591,1731112239996,-1071.81,0.00028948,2]
[341709593,1731112240006,-3832.2835,0.00028961,2]
[341709595,1731112240015,-422.04,0.00029061,2]
[341709597,1731112240024,-150.0,0.00029061,2]
[341709599,1731112240033,-150.0,0.00029061,2]
[341709601,1731112240042,-150.0,0.00029061,2]
[341709603,1731112240051,-150.0,0.00029061,2]
[341709605,1731112240061,-150.0,0.00029061,2]
[341709607,1731112240069,-150.0,0.00029061,2]
[341709609,1731112240078,-150.0,0.00029061,2]
[341709611,1731112240088,-150.0,0.00029061,2]
[341709613,1731112240097,-264.35,0.00029066,2]
[341709615,1731112240106,-2000.0,0.0002907,2]
[341709617,1731112240115,-188.0,0.0002912,2]
[341709619,1731112240124,-500.0,0.00029155,2]
[341709621,1731112240132,-163.253,0.00029155,2]
[341709623,1731112240141,-178.6648,0.00029155,2]
[341709625,1731112240150,-2500.0,0.00029156,2]
[341709627,1731112240159,-4246.71358055,0.00029256,2]
[341709629,1731112240171,-634.62611945,0.00029256,2]
[341709631,1731112240180,-151.20933021,0.00029256,2]
[341709922,1731112242935,-187.38,0.00029246,10]
[341709924,1731112242944,-272.0413,0.00029256,2]
[341709979,1731112245536,-765.96,0.00029256,2]
[341709980,1731112245864,-937.7400006,0.00029256,2]
[341709981,1731112245876,-3062.56,0.00029256,2]
[341709984,1731112303088,450.0,0.00021,2]
[341709985,1731112304124,184.713,0.00025299,2]
[341709986,1731112304339,500.0,0.00023,2]
[341709987,1731112305580,550.0,0.00025,2]
[341709988,1731112305915,206.9465,0.00025299,2]
[341709989,1731112309860,697.99,0.00026487,2]
[341709992,1731112511407,3364.16,0.00027,60]
[341709997,1731113079325,150.0,0.000201,2]
[341709999,1731113234154,-482.47774676,0.00024857,2]
[341710000,1731113242171,-204.37532794,0.00024857,2]
[341710001,1731113242194,-500.0,0.00024932,2]
[341710002,1731113242218,-203.06201328,0.00024957,2]
[341710003,1731113242240,-330.40125,0.0002535,2]
[341710004,1731113242260,-156.498,0.00025357,2]
[341710005,1731113242281,-1974.40075315,0.00025357,2]
[341710006,1731113242303,-702.77,0.00025516,2]
[341710007,1731113242326,-1234.31,0.00026528,2]
[341710008,1731113242349,-1234.31,0.00026954,2]
[341710009,1731113242370,-175.14,0.00026979,2]
[341710010,1731113242392,-23900.0,0.00026992,2]
[341710011,1731113242414,-250.0,0.00027124,2]
[341710012,1731113242434,-296.25,0.00027161,2]
[341710013,1731113242456,-7586.11,0.00027346,2]
[341710014,1731113242477,-1234.31,0.0002738,2]
[341710015,1731113242498,-150.0,0.00027464,2]
[341710016,1731113242520,-310.27,0.00027465,2]
[341710017,1731113242541,-2171.03,0.0002758,2]
[341710018,1731113242562,-162.45,0.0002774,2]
[341710019,1731113242588,-213.17,0.00027765,30]
[341710020,1731113242608,-1320.32,0.00027779,2]
[341710021,1731113242630,-702.77,0.0002778,2]
[341710022,1731113242651,-250.0,0.00027804,2]
[341710023,1731113242672,-166.84,0.00027804,2]
[341710024,1731113242694,-1234.31,0.00027807,2]
[341710025,1731113242716,-160.0,0.00027901,120]
[341710026,1731113242736,-338.68,0.00027902,2]
[341710027,1731113242757,-180.53,0.0002803,2]
[341710028,1731113242779,-151.29,0.00028044,2]
[341710029,1731113242799,-1501.45,0.00028092,2]
[341710030,1731113242826,-1234.31,0.00028233,2]
[341710031,1731113242846,-3200.17,0.00028371,2]
[341710032,1731113242866,-555.13,0.00028626,2]
[341710033,1731113242888,-1234.31,0.00028659,2]
[341710034,1731113242908,-310.27,0.00028838,2]
[341710035,1731113242929,-2000.0,0.0002896,2]
[341710036,1731113242950,-157.026,0.0002899,2]
[341710037,1731113242970,-300.0,0.00029061,2]
[341710038,1731113242991,-150.0,0.00029061,2]
[341710039,1731113243012,-150.0,0.00029061,2]
[341710040,1731113243031,-150.0,0.00029061,2]
[341710041,1731113243053,-1234.31,0.00029085,2]
[341710042,1731113243075,-156.15,0.00029146,10]
[341710043,1731113243095,-357.7661,0.00029156,2]
[341710044,1731113243115,-1096.1188,0.00029156,2]
[341710045,1731113243138,-233791.9998,0.00029156,2]
[341710046,1731113243158,-312.8498616,0.00029156,2]
[341710047,1731113243179,-887.454,0.00029255,2]
[341710048,1731113243199,-1000.0,0.00029256,2]
[341710049,1731113243414,-37854.3379,0.00029256,2]
[341710050,1731113243458,-186.463886,0.00029256,7]
[341710051,1731113243482,-375.719259,0.00029256,7]
[341710052,1731113243507,-293.185185,0.00029256,7]
[341710053,1731113243529,-375.719259,0.00029256,7]
[341710054,1731113243553,-151.0,0.00029256,7]
[341710055,1731113243576,-151.0,0.00029256,7]
[341710056,1731113243599,-372.39437,0.00029256,7]
[341710057,1731113243623,-372.39437,0.00029256,7]
[341710058,1731113243644,-151.0,0.00029256,7]
[341710059,1731113243664,-151.0,0.00029256,2]
[341710060,1731113243685,-151.0,0.00029256,7]
[341710061,1731113243705,-1920.684146,0.00029256,7]
[341710062,1731113243726,-1920.684146,0.00029256,7]
[341710063,1731113243747,-151.0,0.00029256,7]
[341710064,1731113243770,-252.677525,0.00029256,7]
[341710065,1731113243792,-151.0,0.00029256,7]
[341710066,1731113243812,-151.0,0.00029256,7]
[341710067,1731113243837,-151.0,0.00029256,7]
[341710068,1731113243858,-151.0,0.00029256,7]
[341710069,1731113243878,-209.362751,0.00029256,7]
[341710070,1731113243898,-1899.9515,0.00029355,2]
[341710071,1731113243920,-6829.80909244,0.00029355,2]
[341710077,1731113431674,-1000.0,0.00028865,2]
[341710078,1731113431683,-1000.0,0.00028883,2]
[341710079,1731113431694,-82.5403527,0.00028883,2]
[341710080,1731113431706,-167.4596473,0.00028883,2]
[341710081,1731113431716,-2214.7416,0.00029056,2]
[341710082,1731113431726,-13156.36720377,0.00029056,2]
[341710083,1731113431744,-14516.46998079,0.00029056,2]
[341710084,1731113431756,-1488.29368655,0.00029056,2]
[341710085,1731113431789,-8661.41434813,0.00029056,2]
[341710086,1731113431899,-31.79268076,0.00029056,2]
[341710087,1731113431908,-3804.68731924,0.00029056,2]
[341710089,1731113432003,-823.73,0.00029056,2]
[341710105,1731113432690,596.0,0.00022,2]
[341710106,1731113433236,566.0,0.00022,2]
[341710107,1731113434647,197.308,0.00024935,2]
[341710114,1731113437731,-126.74374758,0.00029056,2]
[341710115,1731113437825,-3474.86813326,0.00029056,2]
[341710154,1731113438583,-86580.46019992,0.00029056,2]
[341710156,1731113438592,-13533.3966,0.00029056,2]
[341710158,1731113438602,-500.0,0.00029073,2]
[341710160,1731113438611,-250.0,0.00029073,5]
[341710162,1731113438621,-660.2983,0.00029156,2]
[341710164,1731113438630,-151.0,0.00029256,7]
[341710166,1731113438639,-195.282095,0.00029256,7]
[341710168,1731113438649,-151.0,0.00029256,7]
[341710171,1731113438659,-151.0,0.00029256,7]
[341710173,1731113438668,-151.0,0.00029256,7]
[341710175,1731113438677,-151.0,0.00029256,7]
[341710177,1731113438686,-151.0,0.00029256,7]
[341710179,1731113438695,-2000.0,0.00029355,2]
[341710181,1731113438705,-200.0,0.00029355,2]
[341710183,1731113438720,-368.189,0.00029356,22]
[341710185,1731113438735,-162.978107,0.00029356,7]
[341710187,1731113438745,-200.0,0.0002936,2]
[341710189,1731113438755,-151.230922,0.00029367,7]
[341710191,1731113438764,-151.0,0.00029367,2]
[341710193,1731113438773,-151.0,0.00029367,7]
[341710195,1731113438783,-151.0,0.00029367,7]
[341710197,1731113438792,-151.0,0.00029367,7]
[341710199,1731113438802,-151.0,0.00029367,7]
[341710201,1731113438812,-151.0,0.00029367,7]
[341710203,1731113438821,-370.52075051,0.00029407,2]
[341710205,1731113438831,-670.19090756,0.00029455,2]
[341710207,1731113438840,-158.191304,0.00029456,7]
[341710209,1731113438850,-151.0,0.00029456,7]
[341710211,1731113438859,-154.242244,0.00029456,7]
[341710213,1731113438869,-151.0,0.00029456,7]
[341710215,1731113438878,-151.0,0.00029456,7]
[341710217,1731113438888,-151.0,0.00029456,7]
[341710219,1731113438898,-151.0,0.00029456,7]
[341710221,1731113438907,-151.0,0.00029456,7]
[341710223,1731113438916,-151.0,0.00029456,7]
[341710225,1731113438926,-151.0,0.00029456,2]
[341710227,1731113438935,-151.0,0.00029456,2]
[341710229,1731113438945,-151.0,0.00029456,7]
[341710231,1731113438954,-151.0,0.00029456,7]
[341710233,1731113438967,-216.589234,0.00029456,7]
[341710235,1731113438982,-151.0,0.00029456,7]
[341710237,1731113438991,-151.0,0.00029456,7]
[341710239,1731113439001,-150.0,0.000295,2]
[341710241,1731113439010,-173.0,0.000295,2]
[341710243,1731113439020,-1253.0,0.00029507,2]
[341710245,1731113439030,-452.0,0.00029507,2]
[341710247,1731113439039,-19.78740659,0.00029507,2]
[341710259,1731113439649,-256.45423774,0.00029507,2]
[341710260,1731113439661,-282.75835567,0.00029507,2]
[341710261,1731113439671,-203.30236554,0.00029507,2]
[341710262,1731113439683,-1785.69763446,0.00029507,2]
[341710263,1731113439693,-1794.0,0.00029507,2]
[341710264,1731113439704,-2909.0,0.00029507,2]
[341710265,1731113439714,-1258.0,0.00029507,2]
[341710266,1731113439729,-921.0,0.00029507,2]
[341710267,1731113439740,-813.0,0.00029507,2]
[341710268,1731113439750,-3463.0,0.00029507,2]
[341710269,1731113439760,-151.0,0.00029507,7]
[341710270,1731113439770,-172.194909,0.00029507,7]
[341710271,1731113439780,-151.0,0.00029507,2]
[341710272,1731113439790,-151.0,0.00029507,2]
[341710273,1731113439799,-151.0,0.00029507,7]
[341710274,1731113439810,-151.0,0.00029507,7]
[341710275,1731113439819,-151.0,0.00029507,7]
[341710276,1731113439829,-151.0,0.00029507,7]
[341710277,1731113439839,-151.0,0.00029507,7]
[341710278,1731113439848,-48.05869902,0.00029507,7]
[341710279,1731113439860,-102.94130098,0.00029507,7]
[341710280,1731113439869,-151.0,0.00029507,7]
[341710281,1731113439879,-499.7582014,0.00029512,2]
[341710282,1731113439890,-734.5517986,0.00029512,2]
[341710283,1731113439899,-1205.32216626,0.00029517,2]
[341710284,1731113439911,-400.20251988,0.00029517,2]
[341710290,1731113442730,-500.0,0.00029136,7]
[341710291,1731113442740,-500.0,0.00029136,7]
[341710292,1731113442750,-4318.47531386,0.00029517,2]
[341710293,1731113442760,-155.735,0.00029517,2]
[341710294,1731113442770,-150.0,0.00029517,2]
[341710295,1731113442779,-13618.0,0.00029517,2]
[341710296,1731113442789,-1158.0,0.00029517,2]
[341710297,1731113442798,-150.0,0.00029517,2]
[341710298,1731113442807,-1090.0,0.00029517,2]
[341710299,1731113442817,-151.0,0.00029595,2]
[341710300,1731113442828,-151.0,0.00029595,7]
[341710301,1731113442837,-4078.0,0.00029627,3]
[341710302,1731113442846,-151.0,0.00029648,7]
[341710303,1731113442855,-151.0,0.00029648,7]
[341710304,1731113442865,-280.113445,0.00029648,7]
[341710305,1731113442875,-826.36,0.00029648,15]
[341710306,1731113442884,-9247.84305966,0.00029648,2]
[341710307,1731113442894,-200.0,0.00029649,2]
[341710308,1731113442903,-670.25066735,0.00029655,2]
[341710309,1731113442912,-200.0,0.0002971,23]
[341710310,1731113442922,-370.5207505,0.00029714,2]
[341710311,1731113442931,-5098.19237545,0.00029838,2]
[341710312,1731113442943,-1066.15924479,0.00029838,2]
[341710313,1731113442956,-5325.97216206,0.00029838,2]
[341710314,1731113442968,-4161.8830049,0.00029838,2]
[341710315,1731113442978,-801.0058931,0.00029838,2]
[341710316,1731113442988,-151.0,0.00029838,7]
[341710317,1731113442998,-42.38009628,0.00029838,7]
[341710318,1731113443020,-108.61990372,0.00029838,7]
[341710319,1731113443029,-151.0,0.00029838,7]
[341710320,1731113443039,-141.79360972,0.00029846,2]
[341710321,1731113443057,-8.20639028,0.00029846,2]
[341710322,1731113443067,-150.0,0.00029849,2]
[341710323,1731113443076,-150.0,0.00029858,2]
[341710324,1731113443085,-150.0,0.00029863,2]
[341710325,1731113443094,-150.0,0.00029863,2]
[341710326,1731113443104,-150.0,0.00029868,2]
[341710327,1731113443113,-150.0,0.00029869,2]
[341710328,1731113443122,-1500.0,0.00029871,2]
[341710329,1731113443132,-279.398919,0.00029871,2]
[341710330,1731113443142,-151.0,0.00029871,7]
[341710331,1731113443151,-150.0,0.00029872,2]
[341710332,1731113443160,-150.0,0.00029873,2]
[341710333,1731113443170,-150.0,0.00029878,2]
[341710334,1731113443179,-150.0,0.00029884,2]
[341710335,1731113443189,-150.0,0.00029889,2]
[341710336,1731113443199,-150.0,0.00029889,2]
[341710337,1731113443208,-150.0,0.0002989,2]
[341710338,1731113443219,-150.0,0.00029893,2]
[341710339,1731113443228,-150.0,0.00029893,2]
[341710340,1731113443237,-2000.0,0.00029895,5]
[341710341,1731113443247,-150.0,0.00029895,2]
[341710342,1731113443256,-150.0,0.00029897,2]
[341710343,1731113443265,-1500.0,0.00029898,2]
[341710344,1731113443275,-150.0,0.00029898,2]
[341710345,1731113443284,-150.0,0.00029899,2]
[341710346,1731113443293,-150.0,0.00029903,2]
[341710347,1731113443303,-150.0,0.00029909,2]
[341710348,1731113443312,-1500.0,0.00029909,2]
[341710349,1731113443321,-150.0,0.00029909,2]
[341710350,1731113443331,-150.0,0.0002991,2]
[341710352,1731113443340,-300.0,0.00029912,2]
[341710354,1731113443350,-150.0,0.00029913,2]
[341710356,1731113443363,-150.0,0.00029914,2]
[341710357,1731113443372,-1500.0,0.00029918,2]
[341710358,1731113443382,-150.0,0.00029919,2]
[341710359,1731113443391,-1500.0,0.00029923,2]
[341710361,1731113443400,-150.0,0.00029923,2]
[341710363,1731113443409,-150.0,0.00029926,2]
[341710365,1731113443420,-150.0,0.00029926,2]
[341710367,1731113443429,-150.0,0.00029934,2]
[341710369,1731113443438,-150.0,0.00029936,2]
[341710371,1731113443447,-150.0,0.00029943,2]
[341710372,1731113443456,-150.0,0.00029944,2]
[341710373,1731113443466,-150.0,0.00029946,2]
[341710374,1731113443476,-150.0,0.00029947,2]
[341710375,1731113443485,-150.0,0.00029949,2]
[341710376,1731113443494,-150.0,0.00029949,2]
[341710377,1731113443504,-150.0,0.0002995,2]
[341710378,1731113443514,-150.0,0.0002995,2]
[341710379,1731113443523,-150.0,0.00029956,2]
[341710380,1731113443532,-150.0,0.00029962,2]
[341710381,1731113443541,-150.0,0.00029963,2]
[341710382,1731113443550,-150.0,0.00029963,2]
[341710383,1731113443559,-150.0,0.00029965,2]
[341710384,1731113443569,-150.0,0.00029965,2]
[341710385,1731113443578,-150.0,0.00029967,2]
[341710386,1731113443587,-150.0,0.00029968,2]
[341710387,1731113443596,-150.0,0.00029968,2]
[341710388,1731113443605,-150.0,0.00029969,2]
[341710389,1731113443615,-150.0,0.00029973,2]
[341710390,1731113443624,-278.84198865,0.00029973,2]
[341710391,1731113443634,-150.0,0.00029973,2]
[341710392,1731113443643,-204.35429077,0.00029977,2]
[341710393,1731113443653,-150.0,0.00029983,2]
[341710394,1731113443662,-150.0,0.00029984,2]
[341710395,1731113443672,-478.57656761,0.00029985,30]
[341710396,1731113443681,-150.0,0.00029986,2]
[341710397,1731113443690,-150.0,0.00029988,2]
[341710398,1731113443699,-150.0,0.00029996,2]
[341710399,1731113443709,-150.0,0.00029996,2]
[341710400,1731113443721,-150.0,0.00029996,2]
[341710401,1731113443730,-500.0,0.00029999,2]
[341710402,1731113443739,-500.0,0.00029999,2]
[341710403,1731113443749,-500.0,0.00029999,2]
[341710404,1731113443758,-282.66119633,0.00029999,2]
[341710405,1731113443768,-374.90000001,0.0003,2]
[341710406,1731113443778,-2000.0,0.0003,2]
[341710407,1731113443787,-2500.0,0.0003,30]
[341710408,1731113443797,-154.52788848,0.0003,2]
[341710409,1731113443806,-7616.4,0.0003,30]
[341710410,1731113443816,-150.0,0.0003,2]
[341710411,1731113443825,-151.0,0.0003,7]
[341710412,1731113443834,-151.0,0.0003,7]
[341710413,1731113443844,-419.79122398,0.0003,15]
[341710414,1731113443854,-135770.0,0.0003,2]
[341710415,1731113443864,-151.0,0.0003,120]
[341710416,1731113443874,-151.0,0.0003,7]
[341710417,1731113443883,-151.0,0.0003,7]
[341710418,1731113443893,-151.0,0.0003,7]
[341710419,1731113443903,-151.0,0.0003,120]
[341710420,1731113443912,-419.79122395,0.00030004,15]
[341710421,1731113443923,-419.79122395,0.00030008,15]
[341710422,1731113443933,-150.0,0.00030009,2]
[341710423,1731113443943,-419.79122395,0.00030012,15]
[341710424,1731113443953,-1500.0,0.00030012,2]
[341710425,1731113443963,-150.0,0.00030012,2]
[341710426,1731113443974,-150.0,0.00030012,2]
[341710427,1731113443983,-419.79122395,0.00030016,15]
[341710428,1731113443993,-150.0,0.00030018,2]
[341710429,1731113444003,-150.0,0.00030019,2]
[341710430,1731113444012,-267.72567712,0.0003002,2]
[341710431,1731113444022,-419.79122395,0.0003002,15]
[341710432,1731113444032,-370.5207505,0.0003002,2]
[341710433,1731113444043,-150.0,0.0003002,2]
[341710434,1731113444053,-267.72567711,0.00030022,2]
[341710435,1731113444062,-150.0,0.00030023,2]
[341710436,1731113444072,-150.0,0.00030024,2]
[341710437,1731113444082,-419.79122395,0.00030024,15]
[341710438,1731113444091,-267.72567711,0.00030025,2]
[341710439,1731113444101,-267.72567711,0.00030027,2]
[341710440,1731113444110,-150.0,0.00030027,2]
[341710441,1731113444120,-150.0,0.00030028,2]
[341710442,1731113444130,-419.79122395,0.00030028,15]
[341710443,1731113444140,-267.72567711,0.00030029,2]
[341710444,1731113444150,-267.72567711,0.00030031,2]
[341710445,1731113444159,-419.79122395,0.00030032,15]
[341710446,1731113444168,-150.0,0.00030032,2]
[341710447,1731113444179,-267.72567711,0.00030034,2]
[341710448,1731113444188,-150.0,0.00030034,2]
[341710449,1731113444199,-150.0,0.00030036,2]
[341710450,1731113444234,-150.0,0.00030036,2]
[341710451,1731113444280,-267.72567711,0.00030036,2]
[341710452,1731113444375,-419.79122395,0.00030036,15]
[341710453,1731113444497,-338.147333,0.00030036,7]
[341710454,1731113444583,-903.81868648,0.00030036,2]
[341710455,1731113444720,-338.147333,0.00030036,7]
[341710456,1731113444848,-158.903963,0.00030036,7]
[341710457,1731113444937,-151.0,0.00030036,7]
[341710458,1731113445085,-151.0,0.00030036,7]
[341710459,1731113445177,-335.154933,0.00030036,7]
[341710460,1731113445194,-335.154933,0.00030036,7]
[341710461,1731113445204,-157.39682344,0.00030036,2]
[341710462,1731113445215,-150.0,0.00030036,2]
[341710463,1731113445226,-151.0,0.00030036,7]
[341710464,1731113445235,-1472.20847286,0.00030036,2]
[341710465,1731113445245,-150.0,0.0003004,2]
[341710466,1731113445254,-150.0,0.00030043,2]
[341710467,1731113445264,-1500.0,0.00030044,2]